[Event "*** Titled Tuesday Blitz"]
[Site "Chess.com"]
[Date "2020.12.29"]
[Round "2"]
[White "swimmerchess"]
[Black "Son_of_Sultan"]
[Result "1-0"]
[WhiteElo "2818"]
[BlackElo "2534"]
[TimeControl "180+1"]
[EndTime "10:18:13 PST"]
[Termination "swimmerchess won on time"]

1. e4 {[%clk 0:02:58.8]} 1... c5 {[%clk 0:02:53.6]} 2. Nf3 {[%clk 0:02:58.7]}
2... d6 {[%clk 0:02:49.2]} 3. d4 {[%clk 0:02:58.7]} 3... cxd4 {[%clk 0:02:49]}
4. Nxd4 {[%clk 0:02:59.6]} 4... Nf6 {[%clk 0:02:49.5]} 5. Nc3 {[%clk 0:02:59.1]}
5... a6 {[%clk 0:02:49.4]} 6. Bg5 {[%clk 0:02:59.1]} 6... e6 {[%clk 0:02:48.5]}
7. f4 {[%clk 0:02:58.7]} 7... h6 {[%clk 0:02:47.4]} 8. Bh4 {[%clk 0:02:58.7]}
8... Qb6 {[%clk 0:02:46.1]} 9. Qd2 {[%clk 0:02:58.3]} 9... Qxb2 {[%clk
0:02:44.7]} 10. Rb1 {[%clk 0:02:58.3]} 10... Qa3 {[%clk 0:02:44.5]} 11. e5
{[%clk 0:02:59.2]} 11... dxe5 {[%clk 0:02:39.9]} 12. fxe5 {[%clk 0:03:00.1]}
12... Nd5 {[%clk 0:02:39.6]} 13. Nxd5 {[%clk 0:02:58.5]} 13... exd5 {[%clk
0:02:39.4]} 14. e6 {[%clk 0:02:59.4]} 14... Bxe6 {[%clk 0:02:37.7]} 15. Nxe6
{[%clk 0:02:57.8]} 15... fxe6 {[%clk 0:02:37.6]} 16. Be2 {[%clk 0:02:55.6]}
16... Be7 {[%clk 0:02:34.9]} 17. Bh5+ {[%clk 0:02:53.9]} 17... Kd8 {[%clk
0:02:32.3]} 18. Bf2 {[%clk 0:02:53.1]} 18... Nd7 {[%clk 0:02:20.2]} 19. O-O
{[%clk 0:02:48]} 19... Rf8 {[%clk 0:02:04.4]} 20. Rb3 {[%clk 0:02:31.1]} 20...
Qd6 {[%clk 0:01:16.5]} 21. Rxb7 {[%clk 0:02:27.1]} 21... a5 {[%clk 0:00:46.7]}
22. Rfb1 {[%clk 0:02:11.1]} 22... Qc6 {[%clk 0:00:38]} 23. Kh1 {[%clk
0:01:39.5]} 23... Bc5 {[%clk 0:00:29.2]} 24. Bxc5 {[%clk 0:01:34.4]} 24... Qxc5
{[%clk 0:00:22.7]} 25. Bg4 {[%clk 0:01:34.6]} 25... Rf6 {[%clk 0:00:20.5]} 26.
Qe2 {[%clk 0:01:22.4]} 26... Ke7 {[%clk 0:00:15.2]} 27. Re1 {[%clk 0:01:22.8]}
27... Qc6 {[%clk 0:00:14.2]} 28. Rb3 {[%clk 0:01:22.5]} 28... Raf8 {[%clk
0:00:13.9]} 29. Re3 {[%clk 0:01:18.5]} 29... Nc5 {[%clk 0:00:13.2]} 30. Bf3
{[%clk 0:01:17]} 30... Qd6 {[%clk 0:00:11.7]} 31. Qb5 {[%clk 0:01:14.8]} 31...
Kf7 {[%clk 0:00:11.7]} 32. Qxa5 {[%clk 0:01:14.3]} 32... Kg8 {[%clk 0:00:11.5]}
33. Qd2 {[%clk 0:01:11.6]} 33... Qc7 {[%clk 0:00:08.8]} 34. Qd4 {[%clk
0:01:09.3]} 34... Ne4 {[%clk 0:00:08.4]} 35. c4 {[%clk 0:01:07.8]} 35... Ng5
{[%clk 0:00:07.3]} 36. cxd5 {[%clk 0:01:06.1]} 36... Nxf3 {[%clk 0:00:07.4]} 37.
gxf3 {[%clk 0:01:06.5]} 37... exd5 {[%clk 0:00:05.9]} 38. Qxd5+ {[%clk
0:01:07.4]} 38... Kh8 {[%clk 0:00:06.3]} 39. a4 {[%clk 0:01:06.6]} 39... Rf4
{[%clk 0:00:04.8]} 40. Re8 {[%clk 0:01:01.1]} 40... Kh7 {[%clk 0:00:04.4]} 41.
Qd3+ {[%clk 0:00:57.5]} 41... Kg8 {[%clk 0:00:04]} 42. Kg2 {[%clk 0:00:54.2]}
42... Qa5 {[%clk 0:00:02.7]} 43. Qb5 {[%clk 0:00:52.4]} 43... Qd2+ {[%clk
0:00:01.9]} 44. R1e2 {[%clk 0:00:51.9]} 1-0

[Event "*** Titled Tuesday Blitz"]
[Site "Chess.com"]
[Date "2020.12.29"]
[Round "2"]
[White "jamalm2"]
[Black "Enriquack"]
[Result "0-1"]
[WhiteElo "1902"]
[BlackElo "2364"]
[TimeControl "180+1"]
[EndTime "10:18:13 PST"]
[Termination "Enriquack won on time"]

1. b4 {[%clk 0:03:00.9]} 1... c6 {[%clk 0:02:56.5]} 2. Bb2 {[%clk 0:02:58]} 2...
a5 {[%clk 0:02:56.7]} 3. bxa5 {[%clk 0:02:55.7]} 3... Rxa5 {[%clk 0:02:55.4]} 4.
e3 {[%clk 0:02:55.6]} 4... Nf6 {[%clk 0:02:54.6]} 5. Nf3 {[%clk 0:02:55.3]} 5...
e6 {[%clk 0:02:54.6]} 6. c4 {[%clk 0:02:53.9]} 6... Be7 {[%clk 0:02:53.9]} 7.
Be2 {[%clk 0:02:53.2]} 7... O-O {[%clk 0:02:53.5]} 8. O-O {[%clk 0:02:53]} 8...
d5 {[%clk 0:02:52.4]} 9. d4 {[%clk 0:02:52.5]} 9... Nbd7 {[%clk 0:02:52.3]} 10.
c5 {[%clk 0:02:51.1]} 10... b6 {[%clk 0:02:52]} 11. cxb6 {[%clk 0:02:50]} 11...
Qxb6 {[%clk 0:02:50.4]} 12. Bc3 {[%clk 0:02:49.7]} 12... Ra8 {[%clk 0:02:46.6]}
13. Nbd2 {[%clk 0:02:49.4]} 13... Ba6 {[%clk 0:02:42.6]} 14. Bxa6 {[%clk
0:02:46.2]} 14... Rxa6 {[%clk 0:02:41.6]} 15. Nb3 {[%clk 0:02:42.7]} 15... Rfa8
{[%clk 0:02:39.8]} 16. Qe2 {[%clk 0:02:31.2]} 16... Ne4 {[%clk 0:02:26]} 17. Bb2
{[%clk 0:02:18.8]} 17... Rxa2 {[%clk 0:02:22.7]} 18. Nc5 {[%clk 0:01:59.4]}
18... Ndxc5 {[%clk 0:01:44.4]} 19. dxc5 {[%clk 0:01:56.6]} 19... Qb8 {[%clk
0:01:42.6]} 20. Rab1 {[%clk 0:01:39]} 20... Qf8 {[%clk 0:01:37.9]} 21. Qd3
{[%clk 0:01:28]} 21... Nxc5 {[%clk 0:01:33.2]} 22. Qc3 {[%clk 0:01:19.3]} 22...
Na4 {[%clk 0:01:29.6]} 23. Qb3 {[%clk 0:01:04.4]} 23... Nxb2 {[%clk 0:01:27.6]}
24. Rxb2 {[%clk 0:01:03.4]} 24... Rxb2 {[%clk 0:01:24.1]} 25. Qxb2 {[%clk
0:01:00.8]} 25... Bf6 {[%clk 0:01:24.4]} 26. Qc2 {[%clk 0:00:58.6]} 26... c5
{[%clk 0:01:24.1]} 27. h3 {[%clk 0:00:57]} 27... g6 {[%clk 0:01:23.5]} 28. h4
{[%clk 0:00:51.3]} 28... h5 {[%clk 0:01:21.2]} 29. g3 {[%clk 0:00:48.9]} 29...
c4 {[%clk 0:01:09.6]} 30. Kg2 {[%clk 0:00:48.2]} 30... Ra1 {[%clk 0:01:06.3]}
31. Rxa1 {[%clk 0:00:45.4]} 31... Bxa1 {[%clk 0:01:06.3]} 32. Ng5 {[%clk
0:00:43]} 32... Bf6 {[%clk 0:00:59.8]} 33. Nh3 {[%clk 0:00:33.3]} 33... Qb4
{[%clk 0:00:57.6]} 34. Nf4 {[%clk 0:00:31.9]} 34... Kg7 {[%clk 0:00:54.6]} 35.
Qe2 {[%clk 0:00:20.1]} 35... Qb1 {[%clk 0:00:37.9]} 36. g4 {[%clk 0:00:13.6]}
36... c3 {[%clk 0:00:28.3]} 37. gxh5 {[%clk 0:00:10.7]} 37... c2 {[%clk
0:00:28.3]} 38. hxg6 {[%clk 0:00:05.1]} 38... c1=Q {[%clk 0:00:25.9]} 39. Nh5+
{[%clk 0:00:03.7]} 39... Kxg6 {[%clk 0:00:25.7]} 40. Qg4+ {[%clk 0:00:02.1]}
40... Kh6 {[%clk 0:00:22.9]} 0-1

[Event "*** Titled Tuesday Blitz"]
[Site "Chess.com"]
[Date "2020.12.29"]
[Round "2"]
[White "PawnEatingZombie"]
[Black "Margency"]
[Result "0-1"]
[WhiteElo "2245"]
[BlackElo "2622"]
[TimeControl "180+1"]
[EndTime "10:18:15 PST"]
[Termination "Margency won on time"]

1. d4 {[%clk 0:03:00.9]} 1... d5 {[%clk 0:02:59.9]} 2. c4 {[%clk 0:03:00.7]}
2... e6 {[%clk 0:03:00.1]} 3. Nc3 {[%clk 0:03:00.3]} 3... c5 {[%clk 0:03:00.1]}
4. cxd5 {[%clk 0:02:59.8]} 4... exd5 {[%clk 0:03:00.5]} 5. Nf3 {[%clk
0:02:59.6]} 5... Nc6 {[%clk 0:03:00.2]} 6. dxc5 {[%clk 0:02:59.6]} 6... d4
{[%clk 0:03:00.1]} 7. Na4 {[%clk 0:02:58.8]} 7... Bxc5 {[%clk 0:03:00]} 8. Nxc5
{[%clk 0:02:59.7]} 8... Qa5+ {[%clk 0:03:00.2]} 9. Bd2 {[%clk 0:03:00.1]} 9...
Qxc5 {[%clk 0:03:00.6]} 10. Rc1 {[%clk 0:03:00.3]} 10... Qe7 {[%clk 0:02:58.3]}
11. Qa4 {[%clk 0:02:50.5]} 11... Nf6 {[%clk 0:02:19.7]} 12. Nxd4 {[%clk
0:02:45.8]} 12... O-O {[%clk 0:02:16.3]} 13. e3 {[%clk 0:02:44]} 13... Ne4
{[%clk 0:01:40.6]} 14. Nxc6 {[%clk 0:02:20.9]} 14... bxc6 {[%clk 0:01:40.4]} 15.
Qc2 {[%clk 0:01:58.7]} 15... Rd8 {[%clk 0:01:16.1]} 16. Bc3 {[%clk 0:01:52.2]}
16... Bf5 {[%clk 0:01:07.8]} 17. Bd3 {[%clk 0:01:40.4]} 17... Nxf2 {[%clk
0:00:24.2]} 18. Qxf2 {[%clk 0:00:50.8]} 18... Bxd3 {[%clk 0:00:22.7]} 19. Qg3
{[%clk 0:00:46.3]} 19... f6 {[%clk 0:00:20.5]} 20. Kf2 {[%clk 0:00:42.4]} 20...
Be4 {[%clk 0:00:15.7]} 21. Rcd1 {[%clk 0:00:39.7]} 21... Rd5 {[%clk 0:00:15.5]}
22. Rxd5 {[%clk 0:00:37.1]} 22... cxd5 {[%clk 0:00:16.4]} 23. Rc1 {[%clk
0:00:31]} 23... Rc8 {[%clk 0:00:15.6]} 24. Bd2 {[%clk 0:00:20]} 24... Rxc1
{[%clk 0:00:15.3]} 25. Bxc1 {[%clk 0:00:20.9]} 25... h5 {[%clk 0:00:15.2]} 26.
Qb8+ {[%clk 0:00:19.7]} 26... Kh7 {[%clk 0:00:15.1]} 27. Bd2 {[%clk 0:00:17]}
27... Qe6 {[%clk 0:00:13.8]} 28. Qb4 {[%clk 0:00:12.9]} 28... Qg4 {[%clk
0:00:11.7]} 29. g3 {[%clk 0:00:05.8]} 29... Qf3+ {[%clk 0:00:10.2]} 30. Ke1
{[%clk 0:00:06.2]} 30... Qh1+ {[%clk 0:00:09.4]} 31. Ke2 {[%clk 0:00:05.8]}
31... Qxh2+ {[%clk 0:00:09.8]} 32. Kd1 {[%clk 0:00:06]} 32... Qxg3 {[%clk
0:00:09.4]} 33. Qe7 {[%clk 0:00:02.9]} 33... h4 {[%clk 0:00:08.4]} 34. Be1
{[%clk 0:00:02.5]} 34... Qg4+ {[%clk 0:00:06.7]} 35. Kd2 {[%clk 0:00:02.1]}
35... h3 {[%clk 0:00:06.6]} 0-1

[Event "*** Titled Tuesday Blitz"]
[Site "Chess.com"]
[Date "2020.12.29"]
[Round "2"]
[White "erdni1993"]
[Black "bocah_sakit"]
[Result "0-1"]
[WhiteElo "2534"]
[BlackElo "2817"]
[TimeControl "180+1"]
[EndTime "10:18:16 PST"]
[Termination "bocah_sakit won by resignation"]

1. e4 {[%clk 0:03:00.9]} 1... c5 {[%clk 0:02:59.8]} 2. Nf3 {[%clk 0:03:00.6]}
2... Nc6 {[%clk 0:03:00.3]} 3. d4 {[%clk 0:03:01.2]} 3... cxd4 {[%clk
0:03:01.2]} 4. Nxd4 {[%clk 0:03:01.8]} 4... g6 {[%clk 0:03:02.1]} 5. Nc3 {[%clk
0:03:02.1]} 5... Bg7 {[%clk 0:03:02.6]} 6. Nde2 {[%clk 0:03:02.7]} 6... Nf6
{[%clk 0:03:02.5]} 7. g3 {[%clk 0:03:02.6]} 7... O-O {[%clk 0:03:03]} 8. Bg2
{[%clk 0:03:03.2]} 8... d6 {[%clk 0:03:00.9]} 9. O-O {[%clk 0:03:03.6]} 9... a6
{[%clk 0:02:55.3]} 10. Nd5 {[%clk 0:03:03.4]} 10... b5 {[%clk 0:02:50.7]} 11. c3
{[%clk 0:02:59.3]} 11... Bb7 {[%clk 0:02:48.5]} 12. Bg5 {[%clk 0:02:58.9]} 12...
Nd7 {[%clk 0:02:44.9]} 13. Qd2 {[%clk 0:02:52.4]} 13... Re8 {[%clk 0:02:43.3]}
14. Rfe1 {[%clk 0:02:51.4]} 14... Nce5 {[%clk 0:02:38.3]} 15. b3 {[%clk
0:02:50.5]} 15... Rc8 {[%clk 0:02:33.9]} 16. Rad1 {[%clk 0:02:42.5]} 16... Nb6
{[%clk 0:01:53.6]} 17. h3 {[%clk 0:02:11.2]} 17... Nxd5 {[%clk 0:01:52.3]} 18.
exd5 {[%clk 0:02:11.3]} 18... Qa5 {[%clk 0:01:52.8]} 19. Be3 {[%clk 0:01:34.7]}
19... Nd7 {[%clk 0:01:46]} 20. Bd4 {[%clk 0:01:34.4]} 20... Bxd4 {[%clk
0:01:45.5]} 21. Qxd4 {[%clk 0:01:20.8]} 21... Qxa2 {[%clk 0:01:43.8]} 22. Nc1
{[%clk 0:01:15.6]} 22... Qa5 {[%clk 0:01:41.6]} 23. Rd3 {[%clk 0:01:14.9]} 23...
Qb6 {[%clk 0:01:34.8]} 24. Qh4 {[%clk 0:01:00]} 24... Nf6 {[%clk 0:01:27.1]} 25.
Ne2 {[%clk 0:00:59.6]} 25... a5 {[%clk 0:01:25.9]} 26. Red1 {[%clk 0:00:54.8]}
26... Rc5 {[%clk 0:01:15.7]} 27. Qd4 {[%clk 0:00:51.4]} 27... Qc7 {[%clk
0:01:11]} 28. Qe3 {[%clk 0:00:41.3]} 28... a4 {[%clk 0:01:08.7]} 29. b4 {[%clk
0:00:35.8]} 29... Rc4 {[%clk 0:01:08.9]} 30. Nd4 {[%clk 0:00:35.2]} 30... Qb6
{[%clk 0:01:03]} 31. Nc2 {[%clk 0:00:34.9]} 31... Qxe3 {[%clk 0:01:00.8]} 32.
Rxe3 {[%clk 0:00:35.1]} 32... Rec8 {[%clk 0:00:44.7]} 33. Rxe7 {[%clk
0:00:33.5]} 33... Rxc3 {[%clk 0:00:44.7]} 34. Rxb7 {[%clk 0:00:29.6]} 34... Rxc2
{[%clk 0:00:45.1]} 35. Rxb5 {[%clk 0:00:30.1]} 35... Rc1 {[%clk 0:00:45.6]} 36.
Rxc1 {[%clk 0:00:28.7]} 36... Rxc1+ {[%clk 0:00:46.5]} 37. Kh2 {[%clk
0:00:28.7]} 37... Rc2 {[%clk 0:00:47]} 38. f4 {[%clk 0:00:27]} 38... Rb2 {[%clk
0:00:40.5]} 39. Rb8+ {[%clk 0:00:23.8]} 39... Kg7 {[%clk 0:00:40.8]} 40. b5
{[%clk 0:00:23.8]} 40... Nxd5 {[%clk 0:00:40.9]} 41. Kg1 {[%clk 0:00:20.6]}
41... Ne3 {[%clk 0:00:30.4]} 42. Bf3 {[%clk 0:00:19.9]} 42... a3 {[%clk
0:00:30.7]} 43. Ra8 {[%clk 0:00:18.6]} 43... a2 {[%clk 0:00:30.6]} 44. b6 {[%clk
0:00:13.4]} 44... Nc2 {[%clk 0:00:26.4]} 45. b7 {[%clk 0:00:12.9]} 45... a1=Q+
{[%clk 0:00:25.9]} 46. Rxa1 {[%clk 0:00:12.6]} 46... Nxa1 {[%clk 0:00:26.8]} 0-1

[Event "*** Titled Tuesday Blitz"]
[Site "Chess.com"]
[Date "2020.12.29"]
[Round "2"]
[White "ftorodent"]
[Black "JoachimMouhamad"]
[Result "1/2-1/2"]
[WhiteElo "2639"]
[BlackElo "2353"]
[TimeControl "180+1"]
[EndTime "10:18:16 PST"]
[Termination "Game drawn by repetition"]

1. d4 {[%clk 0:03:00.9]} 1... Nf6 {[%clk 0:02:59.7]} 2. c4 {[%clk 0:03:00]} 2...
g6 {[%clk 0:02:59.7]} 3. Nc3 {[%clk 0:02:59]} 3... d5 {[%clk 0:03:00]} 4. Nf3
{[%clk 0:02:59.2]} 4... Bg7 {[%clk 0:02:59.6]} 5. cxd5 {[%clk 0:02:59.6]} 5...
Nxd5 {[%clk 0:02:59.5]} 6. Bg5 {[%clk 0:03:00.3]} 6... Nxc3 {[%clk 0:02:45.8]}
7. bxc3 {[%clk 0:02:59.8]} 7... O-O {[%clk 0:02:46.7]} 8. e3 {[%clk 0:03:00.1]}
8... c5 {[%clk 0:02:46.4]} 9. Qd2 {[%clk 0:03:00.4]} 9... Nc6 {[%clk 0:02:45.3]}
10. Be2 {[%clk 0:02:59.6]} 10... h6 {[%clk 0:02:38.7]} 11. Bh4 {[%clk
0:02:59.1]} 11... Re8 {[%clk 0:02:38.4]} 12. Rd1 {[%clk 0:02:35]} 12... Qa5
{[%clk 0:02:32.2]} 13. O-O {[%clk 0:02:27.1]} 13... Bf5 {[%clk 0:02:22]} 14. Qb2
{[%clk 0:02:25]} 14... b6 {[%clk 0:02:15.2]} 15. Nd2 {[%clk 0:02:23.3]} 15...
cxd4 {[%clk 0:02:02.5]} 16. cxd4 {[%clk 0:02:22]} 16... Qb4 {[%clk 0:01:55.3]}
17. Qxb4 {[%clk 0:01:36.7]} 17... Nxb4 {[%clk 0:01:54.7]} 18. a3 {[%clk
0:01:35.1]} 18... Nd5 {[%clk 0:01:51.1]} 19. e4 {[%clk 0:01:28.9]} 19... Nc3
{[%clk 0:01:50.7]} 20. Rde1 {[%clk 0:01:20.4]} 20... Nxe2+ {[%clk 0:01:44.9]}
21. Rxe2 {[%clk 0:01:20.6]} 21... Bg4 {[%clk 0:01:45.6]} 22. Nf3 {[%clk
0:01:08.1]} 22... Bxf3 {[%clk 0:01:43.7]} 23. gxf3 {[%clk 0:01:08.4]} 23... Bxd4
{[%clk 0:01:44.3]} 24. Rd1 {[%clk 0:01:06.8]} 24... e5 {[%clk 0:01:23.4]} 25.
Rc2 {[%clk 0:01:03.6]} 25... Rac8 {[%clk 0:01:19.8]} 26. Rdc1 {[%clk 0:01:03.2]}
26... Rxc2 {[%clk 0:01:18.5]} 27. Rxc2 {[%clk 0:01:03.4]} 27... g5 {[%clk
0:01:16.2]} 28. Bg3 {[%clk 0:01:03.4]} 28... Re7 {[%clk 0:01:13]} 29. Rc6 {[%clk
0:01:02.4]} 29... Kg7 {[%clk 0:01:10.1]} 30. h4 {[%clk 0:01:02.1]} 30... f6
{[%clk 0:01:09.7]} 31. Kg2 {[%clk 0:01:02.3]} 31... Rb7 {[%clk 0:01:07.5]} 32.
Kh3 {[%clk 0:00:56.3]} 32... b5 {[%clk 0:01:00.7]} 33. Kg4 {[%clk 0:00:41.9]}
33... Kg6 {[%clk 0:01:00.4]} 34. h5+ {[%clk 0:00:41.7]} 34... Kg7 {[%clk
0:00:57.1]} 35. Kf5 {[%clk 0:00:41.9]} 35... Rf7 {[%clk 0:00:47]} 36. Rc8 {[%clk
0:00:37.3]} 36... Rb7 {[%clk 0:00:38.3]} 37. Rc6 {[%clk 0:00:36.3]} 37... Rf7
{[%clk 0:00:37.7]} 38. Rc8 {[%clk 0:00:36]} 38... a5 {[%clk 0:00:31.3]} 39. Rb8
{[%clk 0:00:31.4]} 39... b4 {[%clk 0:00:31.6]} 40. a4 {[%clk 0:00:31.7]} 40...
Rc7 {[%clk 0:00:27]} 41. Rb5 {[%clk 0:00:25.2]} 41... Rd7 {[%clk 0:00:19.3]} 42.
Ke6 {[%clk 0:00:20.5]} 42... Rc7 {[%clk 0:00:19.3]} 43. Kf5 {[%clk 0:00:20.7]}
43... Ra7 {[%clk 0:00:18.9]} 44. Rb8 {[%clk 0:00:14.8]} 44... Rc7 {[%clk
0:00:18.1]} 45. Rb5 {[%clk 0:00:14.2]} 1/2-1/2

[Event "*** Titled Tuesday Blitz"]
[Site "Chess.com"]
[Date "2020.12.29"]
[Round "2"]
[White "Chuchofrio1"]
[Black "Snegokhod"]
[Result "0-1"]
[WhiteElo "2269"]
[BlackElo "2459"]
[TimeControl "180+1"]
[EndTime "10:18:17 PST"]
[Termination "Snegokhod won by checkmate"]

1. d4 {[%clk 0:03:00.9]} 1... Nf6 {[%clk 0:02:58.6]} 2. c4 {[%clk 0:03:01.3]}
2... g6 {[%clk 0:02:58.2]} 3. Nc3 {[%clk 0:03:01.1]} 3... d5 {[%clk 0:02:58.1]}
4. Bf4 {[%clk 0:02:59.3]} 4... Bg7 {[%clk 0:02:57.6]} 5. e3 {[%clk 0:02:58]}
5... O-O {[%clk 0:02:57.3]} 6. Rc1 {[%clk 0:02:56.8]} 6... c6 {[%clk 0:02:56.1]}
7. cxd5 {[%clk 0:02:53]} 7... cxd5 {[%clk 0:02:55.8]} 8. Bd3 {[%clk 0:02:52.2]}
8... Nc6 {[%clk 0:02:55.2]} 9. Nf3 {[%clk 0:02:49.2]} 9... Bf5 {[%clk
0:02:54.8]} 10. O-O {[%clk 0:02:47.2]} 10... e6 {[%clk 0:02:52.3]} 11. Na4
{[%clk 0:02:43.6]} 11... Ne4 {[%clk 0:02:45.6]} 12. Nc5 {[%clk 0:02:34.9]} 12...
Nxc5 {[%clk 0:02:42]} 13. Rxc5 {[%clk 0:02:34.9]} 13... Bxd3 {[%clk 0:02:39.2]}
14. Qxd3 {[%clk 0:02:33.2]} 14... Qd7 {[%clk 0:02:37.6]} 15. Rfc1 {[%clk
0:02:32.1]} 15... Rfc8 {[%clk 0:02:36.8]} 16. a3 {[%clk 0:02:31.3]} 16... f6
{[%clk 0:02:34.6]} 17. h4 {[%clk 0:02:28.6]} 17... Bf8 {[%clk 0:02:34.2]} 18.
R5c2 {[%clk 0:02:26.3]} 18... Bd6 {[%clk 0:02:33.5]} 19. Bh6 {[%clk 0:02:20.8]}
19... Ne7 {[%clk 0:02:31.3]} 20. Qb3 {[%clk 0:02:08.5]} 20... Rxc2 {[%clk
0:02:28.6]} 21. Rxc2 {[%clk 0:02:08.5]} 21... Rc8 {[%clk 0:02:28.4]} 22. Nd2
{[%clk 0:02:01.8]} 22... Nf5 {[%clk 0:02:20.7]} 23. Rxc8+ {[%clk 0:01:37.1]}
23... Qxc8 {[%clk 0:02:19]} 24. Bf4 {[%clk 0:01:34.7]} 24... Nxd4 {[%clk
0:02:11.3]} 25. Qd3 {[%clk 0:01:27.1]} 25... Nf5 {[%clk 0:02:03.9]} 26. Bxd6
{[%clk 0:01:23]} 26... Nxd6 {[%clk 0:02:03.9]} 27. h5 {[%clk 0:01:22.3]} 27...
gxh5 {[%clk 0:02:00.3]} 28. Qd4 {[%clk 0:01:15.1]} 28... Kg7 {[%clk 0:01:49.6]}
29. Nf3 {[%clk 0:01:12.7]} 29... b6 {[%clk 0:01:43.6]} 30. Qf4 {[%clk
0:01:09.2]} 30... Nf5 {[%clk 0:01:33.2]} 31. g4 {[%clk 0:01:04.5]} 31... hxg4
{[%clk 0:01:32.5]} 32. Qxg4+ {[%clk 0:01:04.4]} 32... Kh8 {[%clk 0:01:26.2]} 33.
e4 {[%clk 0:00:51.9]} 33... Nh6 {[%clk 0:00:59.5]} 34. Qh4 {[%clk 0:00:40]}
34... Qg8+ {[%clk 0:00:56.4]} 35. Kf1 {[%clk 0:00:39.9]} 35... Qg6 {[%clk
0:00:56.3]} 36. exd5 {[%clk 0:00:38]} 36... exd5 {[%clk 0:00:56.8]} 37. Qb4
{[%clk 0:00:33.8]} 37... Kg7 {[%clk 0:00:52]} 38. Qe7+ {[%clk 0:00:32.4]} 38...
Qf7 {[%clk 0:00:52.3]} 39. Qe3 {[%clk 0:00:30.6]} 39... Nf5 {[%clk 0:00:50.2]}
40. Qd3 {[%clk 0:00:27.9]} 40... Qe6 {[%clk 0:00:47.9]} 41. Qa6 {[%clk
0:00:24.4]} 41... Qd7 {[%clk 0:00:46.7]} 42. Qd3 {[%clk 0:00:23.7]} 42... d4
{[%clk 0:00:45.5]} 43. Qe4 {[%clk 0:00:23.6]} 43... d3 {[%clk 0:00:41.1]} 44.
Qg4+ {[%clk 0:00:22.5]} 44... Kf7 {[%clk 0:00:40.2]} 45. Qh5+ {[%clk 0:00:21.9]}
45... Ke6 {[%clk 0:00:36.9]} 46. Ke1 {[%clk 0:00:17]} 46... Qd5 {[%clk
0:00:35.8]} 47. Qe8+ {[%clk 0:00:16.8]} 47... Ne7 {[%clk 0:00:35.1]} 48. Nd2
{[%clk 0:00:15.4]} 48... Qe5+ {[%clk 0:00:34.6]} 49. Kd1 {[%clk 0:00:13.9]}
49... Qe2+ {[%clk 0:00:33.1]} 50. Kc1 {[%clk 0:00:13.8]} 50... Qe1# {[%clk
0:00:33.7]} 0-1

[Event "*** Titled Tuesday Blitz"]
[Site "Chess.com"]
[Date "2020.12.29"]
[Round "2"]
[White "Geller_Jakov"]
[Black "penguingm1"]
[Result "0-1"]
[WhiteElo "2588"]
[BlackElo "2940"]
[TimeControl "180+1"]
[EndTime "10:18:18 PST"]
[Termination "penguingm1 won on time"]

1. e4 {[%clk 0:03:00.9]} 1... e5 {[%clk 0:02:59.8]} 2. Nf3 {[%clk 0:03:00.6]}
2... Nc6 {[%clk 0:03:00.2]} 3. Bc4 {[%clk 0:03:00.8]} 3... Bc5 {[%clk
0:02:58.5]} 4. d3 {[%clk 0:02:59.3]} 4... Nf6 {[%clk 0:02:58.3]} 5. O-O {[%clk
0:02:59.3]} 5... a6 {[%clk 0:02:57.7]} 6. c3 {[%clk 0:02:57.6]} 6... Ba7 {[%clk
0:02:57.5]} 7. a4 {[%clk 0:02:56.5]} 7... d6 {[%clk 0:02:57.4]} 8. Re1 {[%clk
0:02:53.7]} 8... O-O {[%clk 0:02:54.8]} 9. h3 {[%clk 0:02:52.9]} 9... Be6 {[%clk
0:02:54.3]} 10. Nbd2 {[%clk 0:02:30.3]} 10... Nh5 {[%clk 0:02:53.4]} 11. Bb3
{[%clk 0:02:23.8]} 11... Qf6 {[%clk 0:02:51.3]} 12. Nf1 {[%clk 0:02:22.9]} 12...
Nf4 {[%clk 0:02:49.1]} 13. Bc2 {[%clk 0:02:11.1]} 13... g5 {[%clk 0:02:33.9]}
14. Be3 {[%clk 0:01:52.5]} 14... g4 {[%clk 0:02:04.5]} 15. hxg4 {[%clk
0:01:32.2]} 15... Bxg4 {[%clk 0:02:04.2]} 16. N1h2 {[%clk 0:01:28.5]} 16... Qg6
{[%clk 0:00:45.7]} 17. Bxf4 {[%clk 0:01:23.5]} 17... exf4 {[%clk 0:00:39.1]} 18.
Nxg4 {[%clk 0:01:21]} 18... Qxg4 {[%clk 0:00:37.4]} 19. d4 {[%clk 0:01:21.3]}
19... Kh8 {[%clk 0:00:34.7]} 20. Nh2 {[%clk 0:01:01.9]} 20... Qh4 {[%clk
0:00:34.3]} 21. Qg4 {[%clk 0:00:59.8]} 21... Qh6 {[%clk 0:00:25]} 22. Qh3 {[%clk
0:00:45.3]} 22... Qg7 {[%clk 0:00:24.7]} 23. Nf3 {[%clk 0:00:37.6]} 23... Rae8
{[%clk 0:00:16.6]} 24. Nh4 {[%clk 0:00:35.9]} 24... Rg8 {[%clk 0:00:11]} 25. Nf5
{[%clk 0:00:33.4]} 25... Qg5 {[%clk 0:00:10.6]} 26. Bd1 {[%clk 0:00:13.6]} 26...
Re6 {[%clk 0:00:06.3]} 27. Bf3 {[%clk 0:00:12.8]} 27... Ne7 {[%clk 0:00:03.5]}
28. Nxe7 {[%clk 0:00:10.8]} 28... Qxe7 {[%clk 0:00:04.4]} 29. Re2 {[%clk
0:00:08.4]} 29... Qg5 {[%clk 0:00:04.5]} 30. Rae1 {[%clk 0:00:07.5]} 30... Rh6
{[%clk 0:00:04.4]} 31. Qf5 {[%clk 0:00:04.2]} 31... Qh4 {[%clk 0:00:04.2]} 32.
g3 {[%clk 0:00:03.1]} 32... fxg3 {[%clk 0:00:03.1]} 33. fxg3 {[%clk 0:00:03.5]}
33... Qxg3+ {[%clk 0:00:03.6]} 34. Bg2 {[%clk 0:00:03]} 34... c5 {[%clk
0:00:03.8]} 0-1